[Event "FRA-ch Youth U20 2018"]
[Site "Agen"]
[Date "2018.04.16"]
[Round "3"]
[White "Azan, Sarah"]
[Black "Aouachria, Marwa"]
[Result "0-1"]
[ECO "B22"]
[WhiteElo "1381"]
[BlackElo "1687"]
[Annotator "NA RC"]
[PlyCount "40"]
[EventDate "2018.??.??"]
[EventType "swiss"]
[EventCountry "FRA"]
[SourceTitle "playchess.com"]
[Source "ChessBase"]
[SourceQuality "1"]
[TimeControl "5400+30"]

1. e4 {[%emt 0:00:00]} c5 {[%emt 0:00:03]} 2. c3 {[%emt 0:00:00]} d5 {[%emt 0:00:05]} 3. exd5 {[%emt 0:00:24]} Qxd5 {[%emt 0:00:01]} 4. d4 {[%emt 0:00:15]} Nc6 {[%emt 0:00:26]} 5. Nf3 {[%emt 0:02:02]} Bg4 {[%emt 0:00:10]} 6. Be2 {[%emt 0:04:31]} Nf6 {[%emt 0:00:13]} 7. O-O {[%emt 0:02:43]} e6 {[%emt 0:02:09]} 8. Be3 {[%emt 0:06:17]} cxd4 {[%emt 0:09:33]} 9. Bxd4 {[%emt 0:05:56]} Nxd4 {[%emt 0:03:30]} 10. Nxd4 {[%emt 0:05:40]} Bxe2 {[%emt 0:01:08]} 11. Qxe2 {[%emt 0:00:53]} a6 {[%emt 0:00:21]} 12. Nd2 {[%emt 0:02:44]} Bd6 {[%emt 0:05:25]} 13. N2f3 {[%emt 0:01:35]} O-O {[%emt 0:06:20]} 14. Rfd1 {[%emt 0:03:00]} Qh5 {[%emt 0:03:27]} 15. Qc4 {[%emt 0:14:05]} Nd5 {[%emt 0:09:41]} 16. Qd3 {[%emt 0:08:26]} Nf4 {[%emt 0:03:23]} 17. Qc2 {[%emt 0:04:37]} Bc5 {[%emt 0:02:51]} 18. b4 {[%emt 0:05:32]} Ba7 {[%emt 0:05:44]} 19. Qe4 {[%emt 0:08:41]} Qg4 {[%emt 0:02:45]} 20. g3 {[%emt 0:01:00]} Nh3+ 0-1

[Event "FRA-ch Youth U20 2018"]
[Site "Agen"]
[Date "2018.04.17"]
[Round "4"]
[White "Philippe, Guillaume"]
[Black "Albaric, Etienne"]
[Result "1-0"]
[ECO "B50"]
[WhiteElo "2372"]
[BlackElo "2202"]
[Annotator "NA"]
[PlyCount "40"]
[EventDate "2018.??.??"]
[EventType "swiss"]
[EventCountry "FRA"]
[SourceTitle "playchess.com"]
[Source "ChessBase"]
[SourceQuality "1"]
[TimeControl "5400+30"]

1. e4 {[%emt 0:00:00]} c5 {[%emt 0:04:18]} 2. Nf3 {[%emt 0:00:15]} d6 {[%emt 0:00:05]} 3. c3 {[%emt 0:04:05]} Nf6 {[%emt 0:01:45]} 4. Be2 {[%emt 0:01:15]} g6 {[%emt 0:02:47]} 5. O-O {[%emt 0:02:52]} Bg7 {[%emt 0:00:15]} 6. Re1 {[%emt 0:01:44]} O-O {[%emt 0:04:07]} 7. Bf1 {[%emt 0:00:17]} Nc6 {[%emt 0:04:42]} 8. h3 $11 {[%emt 0:02:22] LiveBook: 194 Games} a6 {[%emt 0:10:56]} 9. a3 {[%emt 0:05:42]} b6 {[%emt 0:03:58]} 10. b4 {[%emt 0:01:11]} Bb7 {[%emt 0:01:43]} 11. Bb2 {[%emt 0:01:14]} e5 {[%emt 0:07:09]} 12. d3 {[%emt 0:00:45]} Re8 {[%emt 0:03:13]} 13. Nbd2 {[%emt 0:00:54]} Rc8 {[%emt 0:14:52]} 14. Qb3 {[%emt 0:02:08]} Qc7 {[%emt 0:04:21]} 15. Nc4 {[%emt 0:04:16]} d5 {[%emt 0:04:37]} 16. exd5 {[%emt 0:04:51]} Nxd5 {[%emt 0:00:01]} 17. bxc5 bxc5 {[%emt 0:00:45]} 18. Ng5 {[%emt 0:01:48]} Nce7 {[%emt 0:05:03]} 19. a4 {[%emt 0:04:54]} Rb8 {[%emt 0:01:50]} 20. Ba3 {[%emt 0:01:09]} Bc8 {[%emt 0:02:18]} 1-0

[Event "FRA-ch Youth U20 2018"]
[Site "Agen"]
[Date "2018.04.17"]
[Round "4"]
[White "Meunier, Clement"]
[Black "Grimault, Nathan"]
[Result "0-1"]
[ECO "B06"]
[WhiteElo "2370"]
[BlackElo "2016"]
[Annotator "NA"]
[PlyCount "164"]
[EventDate "2018.??.??"]
[EventType "swiss"]
[EventCountry "FRA"]
[SourceTitle "playchess.com"]
[Source "ChessBase"]
[SourceQuality "1"]
[TimeControl "5400+30"]

1. e4 {[%emt 0:05:01]} g6 {[%emt 0:00:39]} 2. d4 {[%emt 0:00:05]} Bg7 {[%emt 0:00:06]} 3. Nc3 {[%emt 0:00:02]} d6 {[%emt 0:01:16]} 4. Bg5 {[%emt 0:00:42]} c5 {[%emt 0:02:27]} 5. dxc5 {[%emt 0:15:56] LiveBook: 36 Games} Qa5 {[%emt 0:07:06]} 6. Qd2 {[%emt 0:01:54]} Qxc5 $14 {[%emt 0:03:04]} 7. Nd5 {[%emt 0:03:52]} Be6 {[%emt 0:19:27]} 8. O-O-O {[%emt 0:11:47]} Bxd5 {[%emt 0:10:37]} 9. exd5 {[%emt 0:23:05]} Nf6 {[%emt 0:00:30]} 10. Be3 {[%emt 0:00:32]} Qc7 {[%emt 0:00:16]} 11. Bb5+ {[%emt 0:05:06]} Nbd7 {[%emt 0:00:14]} 12. f3 {[%emt 0:01:30]} a6 {[%emt 0:02:31]} 13. Bxd7+ Qxd7 {[%emt 0:00:19]} 14. g4 {[%emt 0:02:19]} Rc8 {[%emt 0:01:57]} 15. Ne2 {[%emt 0:02:05]} O-O {[%emt 0:01:38]} 16. h4 {[%emt 0:02:31]} Qa4 {[%emt 0:05:51]} 17. Nc3 {[%emt 0:01:22]} Rxc3 {[%emt 0:15:41]} 18. Qxc3 {[%emt 0:05:43]} Nxd5 {[%emt 0:00:14]} 19. Qb3 {[%emt 0:00:01]} Qxb3 {[%emt 0:00:18]} 20. axb3 {[%emt 0:00:02]} Nxe3 {[%emt 0:00:08]} 21. Rde1 {[%emt 0:00:36]} Bd4 {[%emt 0:02:25]} 22. c3 {[%emt 0:00:11]} Bb6 {[%emt 0:00:40]} 23. Kd2 {[%emt 0:00:01]} Nd5 {[%emt 0:00:54]} 24. h5 {[%emt 0:02:50]} g5 {[%emt 0:00:16]} 25. Re2 {[%emt 0:03:27]} e6 {[%emt 0:02:36]} 26. Re4 {[%emt 0:00:03]} Kg7 {[%emt 0:01:52]} 27. Ra1 {[%emt 0:01:15]} Kf6 {[%emt 0:00:55]} 28. Raa4 {[%emt 0:02:29]} Rc8 {[%emt 0:01:44]} 29. Rac4 {[%emt 0:00:10]} Rd8 {[%emt 0:00:48]} 30. Re1 {[%emt 0:00:29]} Bf2 {[%emt 0:00:53]} 31. Re2 {[%emt 0:00:25]} Ba7 {[%emt 0:00:52]} 32. Re1 {[%emt 0:00:42]} Ke7 {[%emt 0:01:02]} 33. Ra1 {[%emt 0:01:23]} Kd7 {[%emt 0:00:25]} 34. b4 {[%emt 0:02:03]} Nc7 {[%emt 0:00:43]} 35. Re4 {[%emt 0:00:06]} d5 {[%emt 0:05:23]} 36. Re2 {[%emt 0:00:22]} Kc6 {[%emt 0:00:47]} 37. Rf1 {[%emt 0:00:45]} Nb5 {[%emt 0:00:54]} 38. f4 {[%emt 0:01:57]} gxf4 {[%emt 0:00:15]} 39. Rxf4 {[%emt 0:00:06]} Nd6 {[%emt 0:00:02]} 40. Kc2 {[%emt 0:01:01]} Rg8 {[%emt 0:00:12]} 41. b3 {[%emt 0:00:43]} b5 {[%emt 0:05:19]} 42. Kd3 {[%emt 0:00:30]} Rg5 {[%emt 0:00:41]} 43. Ra2 {[%emt 0:01:21]} Kb7 {[%emt 0:00:09]} 44. Ke2 {[%emt 0:00:45]} f5 {[%emt 0:00:31]} 45. gxf5 {[%emt 0:01:33]} Rg2+ {[%emt 0:00:26]} 46. Kd3 {[%emt 0:00:01]} Rxa2 {[%emt 0:00:12]} 47. fxe6 {[%emt 0:00:01]} Rf2 {[%emt 0:01:38]} 48. Rg4 {[%emt 0:00:07]} Rf3+ {[%emt 0:01:08]} 49. Kc2 {[%emt 0:01:13]} Nf5 {[%emt 0:00:54]} 50. Rg8 {[%emt 0:00:42]} Re3 {[%emt 0:00:27]} 51. Rf8 {[%emt 0:00:24]} Nd6 {[%emt 0:00:18]} 52. Rh8 {[%emt 0:01:20]} Rxe6 {[%emt 0:00:30]} 53. Rxh7+ {[%emt 0:00:01]} Ka8 {[%emt 0:01:09]} 54. Kd3 {[%emt 0:00:42]} Nf5 {[%emt 0:00:51]} 55. Rf7 {[%emt 0:00:51]} Nd6 {[%emt 0:01:30]} 56. Rh7 {[%emt 0:00:19]} Re3+ {[%emt 0:00:07]} 57. Kc2 {[%emt 0:00:04]} Rh3 {[%emt 0:00:20]} 58. h6 {[%emt 0:00:23]} Bb8 {[%emt 0:00:09]} 59. Kb2 {[%emt 0:00:27]} Nf5 {[%emt 0:00:48]} 60. Rd7 {[%emt 0:00:03]} Rxh6 {[%emt 0:01:14]} 61. Rxd5 {[%emt 0:00:01]} Ne7 {[%emt 0:00:14]} 62. Rd7 {[%emt 0:00:06]} Nc6 {[%emt 0:00:15]} 63. Rd3 {[%emt 0:00:36]} Kb7 {[%emt 0:00:09]} 64. Re3 {[%emt 0:00:20]} Rh2+ {[%emt 0:00:31]} 65. Kb1 {[%emt 0:00:04]} Bc7 {[%emt 0:00:50]} 66. Rd3 {[%emt 0:00:07]} a5 {[%emt 0:00:12]} 67. Rd5 {[%emt 0:00:43]} Kb6 {[%emt 0:00:11]} 68. bxa5+ {[%emt 0:00:18]} Nxa5 {[%emt 0:00:05]} 69. c4 {[%emt 0:00:02]} bxc4 {[%emt 0:00:14]} 70. bxc4 {[%emt 0:00:02]} Nxc4 {[%emt 0:00:06]} 71. Rf5 {[%emt 0:00:27]} Be5 {[%emt 0:00:12]} 72. Kc1 {[%emt 0:00:32]} Kc5 {[%emt 0:00:19]} 73. Rf8 {[%emt 0:00:52]} Kd4 {[%emt 0:00:39]} 74. Kb1 {[%emt 0:00:18]} Kd3 {[%emt 0:00:41]} 75. Rf3+ {[%emt 0:00:21]} Ne3 {[%emt 0:00:09]} 76. Rf8 {[%emt 0:00:13]} Bd4 {[%emt 0:01:18]} 77. Rg8 {[%emt 0:00:22]} Nd5 {[%emt 0:01:33]} 78. Rg3+ {[%emt 0:00:16]} Be3 {[%emt 0:00:14]} 79. Ka1 {[%emt 0:00:09]} Re2 {[%emt 0:01:23]} 80. Rh3 {[%emt 0:02:34]} Nb4 {[%emt 0:01:13]} 81. Rg3 {[%emt 0:00:39]} Kc4 {[%emt 0:00:54]} 82. Kb1 {[%emt 0:01:11]} Kb3 {[%emt 0:00:16]} 0-1

[Event "FRA-ch Youth U20 2018"]
[Site "Agen"]
[Date "2018.04.17"]
[Round "4"]
[White "Haussernot, Cecile"]
[Black "Leriche, Ines"]
[Result "1-0"]
[ECO "B01"]
[WhiteElo "2165"]
[BlackElo "1913"]
[Annotator "NA"]
[PlyCount "55"]
[EventDate "2018.??.??"]
[EventType "swiss"]
[EventCountry "FRA"]
[SourceTitle "playchess.com"]
[Source "ChessBase"]
[SourceQuality "1"]
[TimeControl "5400+30"]

1. e4 {[%emt 0:00:00]} d5 {[%emt 0:00:45]} 2. exd5 {[%emt 0:00:00]} Qxd5 {[%emt 0:00:12]} 3. Nc3 {[%emt 0:00:00]} Qd6 {[%emt 0:00:12]} 4. d4 {[%emt 0:00:01]} Nf6 {[%emt 0:00:18] LiveBook: 3425 Games} 5. Bd3 {[%emt 0:00:07]} Bg4 {[%emt 0:00:33]} 6. f3 {[%emt 0:00:52]} Bh5 {[%emt 0:00:18]} 7. Nge2 {[%emt 0:00:08]} Nc6 {[%emt 0:00:32]} 8. Be3 {[%emt 0:19:25]} e6 {[%emt 0:09:31]} 9. Qd2 {[%emt 0:00:59]} Qd7 $14 {[%emt 0:02:33]} 10. a3 {[%emt 0:14:03]} a6 {[%emt 0:04:44]} 11. O-O {[%emt 0:11:17]} Be7 {[%emt 0:11:43]} 12. Rad1 {[%emt 0:09:19]} O-O {[%emt 0:08:50]} 13. Qe1 {[%emt 0:01:01]} Rad8 {[%emt 0:06:42]} 14. Qg3 {[%emt 0:03:37]} Bg6 {[%emt 0:06:32]} 15. Ne4 {[%emt 0:02:13]} Nh5 {[%emt 0:16:42]} 16. Qh3 {[%emt 0:07:57]} e5 {[%emt 0:05:06]} 17. g4 {[%emt 0:04:29]} Nxd4 {[%emt 0:07:03]} 18. Bxd4 {[%emt 0:06:29]} exd4 {[%emt 0:00:13]} 19. f4 {[%emt 0:00:07]} Bxe4 {[%emt 0:07:51]} 20. Bxe4 {[%emt 0:00:07]} Qe6 {[%emt 0:01:57]} 21. Bf5 {[%emt 0:04:49]} Qxe2 {[%emt 0:06:44]} 22. Rde1 {[%emt 0:00:05]} Qc4 {[%emt 0:01:10]} 23. Rxe7 {[%emt 0:00:33]} Qc5 {[%emt 0:01:17]} 24. Qxh5 {[%emt 0:02:30]} d3+ {[%emt 0:00:30]} 25. Kh1 {[%emt 0:00:52]} g6 {[%emt 0:00:30]} 26. Bxg6 {[%emt 0:00:18]} Qxh5 {[%emt 0:00:31]} 27. Bxh5 {[%emt 0:00:05]} dxc2 {[%emt 0:00:25]} 28. g5 {[%emt 0:00:10]} 1-0

[Event "FRA-ch Youth U20 2018"]
[Site "Agen"]
[Date "2018.04.17"]
[Round "4"]
[White "Karapetian, Rouben"]
[Black "Ek, Alexandre"]
[Result "0-1"]
[ECO "E21"]
[WhiteElo "2026"]
[BlackElo "2222"]
[Annotator "NA"]
[PlyCount "72"]
[EventDate "2018.??.??"]
[EventType "swiss"]
[EventCountry "FRA"]
[SourceTitle "playchess.com"]
[Source "ChessBase"]
[SourceQuality "1"]
[TimeControl "5400+30"]

1. d4 {[%emt 0:01:22]} Nf6 {[%emt 0:00:10]} 2. Nf3 {[%emt 0:00:01]} e6 {[%emt 0:00:52]} 3. c4 {[%emt 0:00:48]} b6 {[%emt 0:00:46]} 4. Nc3 {[%emt 0:00:27]} Bb4 {[%emt 0:00:17]} 5. e3 {[%emt 0:02:59]} Ne4 {[%emt 0:03:01]} 6. Qc2 {[%emt 0:00:42] LiveBook: 134 Games} Bb7 {[%emt 0:01:31]} 7. Bd3 {[%emt 0:04:07]} f5 {[%emt 0:01:14]} 8. O-O {[%emt 0:00:27]} Bxc3 {[%emt 0:09:10]} 9. bxc3 $11 {[%emt 0:00:06]} O-O {[%emt 0:00:13]} 10. Nd2 {[%emt 0:04:41]} Nxd2 {[%emt 0:05:58]} 11. Bxd2 {[%emt 0:00:01]} Nc6 {[%emt 0:03:03]} 12. e4 {[%emt 0:05:12]} Qf6 {[%emt 0:02:59]} 13. exf5 {[%emt 0:07:52]} exf5 {[%emt 0:00:06]} 14. c5 {[%emt 0:03:29]} Kh8 {[%emt 0:02:12]} 15. cxb6 axb6 {[%emt 0:00:05]} 16. Bf4 {[%emt 0:03:33]} d6 {[%emt 0:01:57]} 17. Rae1 {[%emt 0:12:02]} Qf7 {[%emt 0:09:29]} 18. Re2 {[%emt 0:03:23]} Ba6 {[%emt 0:06:19]} 19. Bxa6 {[%emt 0:08:38]} Rxa6 {[%emt 0:00:01]} 20. Rfe1 {[%emt 0:00:55]} h6 {[%emt 0:04:55]} 21. Bc1 {[%emt 0:02:45]} Raa8 {[%emt 0:21:01]} 22. f3 {[%emt 0:08:12]} Rae8 {[%emt 0:04:39]} 23. Kf2 {[%emt 0:03:33]} Rxe2+ {[%emt 0:01:56]} 24. Rxe2 {[%emt 0:03:23]} Kg8 {[%emt 0:03:06]} 25. Qd3 {[%emt 0:01:12]} Qd5 {[%emt 0:00:53]} 26. Qe3 {[%emt 0:05:31]} Kf7 {[%emt 0:03:52]} 27. h4 {[%emt 0:02:47]} Ra8 {[%emt 0:02:23]} 28. a3 {[%emt 0:00:02]} Kg8 {[%emt 0:01:01]} 29. Qf4 {[%emt 0:03:08]} Qf7 {[%emt 0:02:17]} 30. Qd2 {[%emt 0:04:45]} Na5 {[%emt 0:01:12]} 31. d5 {[%emt 0:02:34]} Nb3 {[%emt 0:01:22]} 32. Qc2 {[%emt 0:01:38]} Nxc1 {[%emt 0:00:51]} 33. Qxc1 {[%emt 0:00:01]} Qxd5 {[%emt 0:00:08]} 34. Qe3 {[%emt 0:02:02]} Qf7 {[%emt 0:00:06]} 35. Qc1 {[%emt 0:00:39]} Qc4 {[%emt 0:00:41]} 36. Qe3 {[%emt 0:00:32]} Qxh4+ {[%emt 0:00:10]} 0-1

[Event "FRA-ch Youth U20 2018"]
[Site "Agen"]
[Date "2018.04.17"]
[Round "4"]
[White "Retailleau, Elise"]
[Black "Azan, Sarah"]
[Result "*"]
[WhiteElo "1932"]
[BlackElo "1381"]
[Annotator "NA"]
[PlyCount "21"]
[EventDate "2018.??.??"]
[EventType "swiss"]
[EventCountry "FRA"]
[SourceTitle "playchess.com"]
[Source "ChessBase"]
[SourceQuality "1"]
[TimeControl "5400+30"]

{[%evp 8,21,28,32767,32767,32767,32767,8,8,4,10,0,37,-17,23,17]} 1. e4 {[%emt 0:05:32]} c6 {[%emt 0:00:05]} 2. d4 {[%emt 0:00:14]} d5 {[%emt 0:00:06]} 3. Nc3 {[%emt 0:00:32]} dxe4 {[%emt 0:00:12]} 4. Nxe4 {[%emt 0:00:36]} Bf5 {[%emt 0:00:09]} 5. Ng3 {[%emt 0:00:35]} Bg6 {[%emt 0:00:08]} 6. h4 {[%emt 0:00:32]} h6 {[%emt 0:00:11]} 7. Nh3 {[%emt 0:00:28]} e6 {[%emt 0:01:47]} 8. Nf4 {[%emt 0:00:55]} Bh7 {[%emt 0:01:03]} 9. Bc4 {[%emt 0:01:18] LiveBook: 119 Games} Nd7 {[%emt 0:07:32]} 10. Be3 {[%emt 0:04:43]} Qb6 {[%emt 0:10:06]} 11. Bb3 $11 {[%emt 0:06:08]} *

[Event "FRA-ch Youth U20 2018"]
[Site "Agen"]
[Date "2018.04.17"]
[Round "4"]
[White "Fretel, Liza"]
[Black "Aubert, Laurane"]
[Result "0-1"]
[ECO "B40"]
[WhiteElo "1849"]
[BlackElo "1952"]
[Annotator "NA"]
[PlyCount "126"]
[EventDate "2018.??.??"]
[EventType "swiss"]
[EventCountry "FRA"]
[SourceTitle "playchess.com"]
[Source "ChessBase"]
[SourceQuality "1"]
[TimeControl "5400+30"]

1. e4 {[%emt 0:00:00]} c5 {[%emt 0:00:04]} 2. Nf3 {[%emt 0:00:00]} e6 {[%emt 0:00:41]} 3. d4 {[%emt 0:01:12]} cxd4 {[%emt 0:00:04]} 4. Nxd4 {[%emt 0:00:05]} Nf6 {[%emt 0:00:03]} 5. Nc3 {[%emt 0:00:58]} Nc6 {[%emt 0:00:04]} 6. g3 {[%emt 0:01:13]} Bb4 {[%emt 0:12:09]} 7. Bg2 {[%emt 0:02:17] LiveBook: 71 Games} d5 {[%emt 0:05:13]} 8. O-O {[%emt 0:03:23]} ({Better is} 8. exd5 $1 $14 exd5 9. O-O) 8... O-O $14 {[%emt 0:01:56]} (8... Bxc3 $5 9. bxc3 Nxe4 $11) 9. Bg5 {[%emt 0:06:03]} h6 {[%emt 0:04:40]} 10. Bf4 {[%emt 0:07:16]} Re8 {[%emt 0:10:06]} 11. e5 {[%emt 0:07:29]} Nd7 {[%emt 0:00:52]} 12. Nxc6 {[%emt 0:01:05]} bxc6 {[%emt 0:00:04]} 13. Qg4 {[%emt 0:09:20]} f5 {[%emt 0:21:46]} 14. Qg6 {[%emt 0:12:48]} Nf8 {[%emt 0:01:03]} 15. Qh5 {[%emt 0:00:10]} Ba6 {[%emt 0:04:00]} 16. Rfd1 {[%emt 0:08:25]} Kh7 {[%emt 0:06:29]} 17. Bd2 {[%emt 0:07:09]} Nd7 {[%emt 0:05:40]} 18. Re1 {[%emt 0:02:27]} Rc8 {[%emt 0:04:10]} 19. g4 {[%emt 0:03:29]} fxg4 {[%emt 0:05:03]} 20. Qxg4 {[%emt 0:01:53]} Qe7 {[%emt 0:01:06]} 21. Nxd5 {[%emt 0:05:11]} cxd5 {[%emt 0:02:04]} 22. Bxb4 {[%emt 0:00:54]} Qf7 {[%emt 0:00:17]} 23. Rac1 {[%emt 0:04:12]} Rc4 {[%emt 0:01:43]} 24. Qe2 {[%emt 0:01:13]} Nxe5 {[%emt 0:04:20]} 25. Qxe5 {[%emt 0:01:30]} Rxb4 {[%emt 0:00:08]} 26. Qd6 {[%emt 0:06:48]} Rb6 {[%emt 0:00:11]} 27. Qe5 {[%emt 0:00:41]} Rb4 {[%emt 0:02:24]} 28. Qd6 {[%emt 0:01:45]} Rb6 {[%emt 0:00:05]} 29. Qe5 {[%emt 0:00:04]} Rf8 {[%emt 0:00:03]} 30. Qd4 {[%emt 0:00:13]} Rc6 {[%emt 0:01:48]} 31. b3 {[%emt 0:00:23]} Rc7 {[%emt 0:01:06]} 32. c4 {[%emt 0:01:21]} dxc4 {[%emt 0:00:26]} 33. bxc4 {[%emt 0:01:11]} Rxc4 {[%emt 0:03:00]} 34. Rxc4 {[%emt 0:00:34]} Bxc4 {[%emt 0:00:04]} 35. Qd2 {[%emt 0:01:37]} Bd5 {[%emt 0:02:36]} 36. Re3 {[%emt 0:02:20]} Qg6 {[%emt 0:00:56]} 37. Qd3 {[%emt 0:00:41]} Rf5 {[%emt 0:01:43]} 38. Rg3 {[%emt 0:00:29]} Rg5 {[%emt 0:00:49]} 39. Qxg6+ {[%emt 0:00:37]} Kxg6 {[%emt 0:00:18]} 40. a3 {[%emt 0:00:39]} Bxg2 {[%emt 0:00:36]} 41. Kxg2 {[%emt 0:00:09]} Rxg3+ {[%emt 0:00:09]} 42. fxg3 {[%emt 0:00:38]} Kf5 {[%emt 0:00:07]} 43. Kf3 {[%emt 0:00:09]} Ke5 {[%emt 0:00:43]} 44. Ke3 {[%emt 0:00:13]} Kd5 {[%emt 0:00:38]} 45. h4 {[%emt 0:00:45]} g6 {[%emt 0:00:20]} 46. Kd3 {[%emt 0:00:52]} Ke5 {[%emt 0:01:01]} 47. Ke3 {[%emt 0:00:18]} Kf5 {[%emt 0:00:26]} 48. h5 {[%emt 0:00:47]} g5 {[%emt 0:00:33]} 49. Kf3 {[%emt 0:00:13]} g4+ {[%emt 0:00:03]} 50. Ke3 {[%emt 0:00:04]} Ke5 {[%emt 0:00:36]} 51. Kd3 {[%emt 0:00:07]} Kd5 {[%emt 0:00:44]} 52. Ke3 {[%emt 0:00:14]} e5 {[%emt 0:00:23]} 53. Kd3 {[%emt 0:00:39]} e4+ {[%emt 0:00:48]} 54. Kc3 {[%emt 0:00:08]} Kc5 {[%emt 0:00:26]} 55. a4 {[%emt 0:00:39]} a5 {[%emt 0:00:07]} 56. Kd2 {[%emt 0:00:38]} Kb4 {[%emt 0:00:40]} 57. Ke3 {[%emt 0:00:06]} Kxa4 {[%emt 0:00:11]} 58. Kxe4 {[%emt 0:00:04]} Kb3 {[%emt 0:00:05]} 59. Kf5 {[%emt 0:00:23]} a4 {[%emt 0:00:04]} 60. Kg6 {[%emt 0:00:20]} a3 {[%emt 0:00:05]} 61. Kxh6 {[%emt 0:00:03]} a2 {[%emt 0:00:04]} 62. Kh7 {[%emt 0:00:35]} a1=Q {[%emt 0:00:06]} 63. h6 {[%emt 0:00:16]} Qf6 {[%emt 0:00:36]} 0-1

[Event "FRA-ch Youth U20 2018"]
[Site "Agen"]
[Date "2018.04.17"]
[Round "4"]
[White "Wojnowski, Natalia"]
[Black "Aouachria, Marwa"]
[Result "0-1"]
[ECO "B23"]
[WhiteElo "1426"]
[BlackElo "1687"]
[Annotator "NA"]
[PlyCount "56"]
[EventDate "2018.??.??"]
[EventType "swiss"]
[EventCountry "FRA"]
[SourceTitle "playchess.com"]
[Source "ChessBase"]
[SourceQuality "1"]
[TimeControl "5400+30"]

1. e4 c5 2. Nc3 Nc6 3. f4 e6 4. Nf3 Nge7 5. Bb5 g6 6. O-O Bg7 7. d3 Nd4 8. f5 exf5 9. Bc4 O-O 10. Bg5 fxe4 11. Nd5 Ndc6 12. dxe4 h6 13. Bf6 Bxf6 14. Nxf6+ Kg7 15. Nd5 Nxd5 16. Qxd5 d6 17. Ng5 hxg5 18. Rxf7+ Rxf7 19. Qxf7+ Kh6 20. Rf1 Ne5 21. Qd5 Bd7 22. Be2 Bc6 23. Qd1 Bxe4 24. c4 Qe7 25. Qb3 Rf8 26. Re1 Rf4 27. Bf3 Bxf3 28. gxf3 Nxf3+ 0-1

[Event "FRA-ch Youth U20 2018"]
[Site "Agen"]
[Date "2018.04.18"]
[Round "5"]
[White "Ek, Alexandre"]
[Black "Bol, Frederic"]
[Result "1-0"]
[ECO "B22"]
[WhiteElo "2222"]
[BlackElo "2194"]
[Annotator "NA"]
[PlyCount "65"]
[EventDate "2018.??.??"]
[EventType "swiss"]
[EventCountry "FRA"]
[SourceTitle "playchess.com"]
[Source "ChessBase"]
[SourceQuality "1"]
[TimeControl "5400+30"]

1. e4 {[%emt 0:00:00]} c5 {[%emt 0:00:06]} 2. c3 {[%emt 0:00:00]} Nf6 {[%emt 0:01:03]} 3. e5 {[%emt 0:00:04]} Nd5 {[%emt 0:00:04]} 4. d4 {[%emt 0:00:06]} cxd4 {[%emt 0:00:26]} 5. Nf3 {[%emt 0:00:07]} Nc6 {[%emt 0:00:11]} 6. cxd4 {[%emt 0:00:05]} d6 {[%emt 0:00:31]} 7. Bc4 {[%emt 0:00:08]} e6 {[%emt 0:01:10]} 8. O-O {[%emt 0:00:26]} Be7 {[%emt 0:00:03]} 9. Qe2 {[%emt 0:00:35] LiveBook: 1274 Games} O-O {[%emt 0:00:15]} 10. Qe4 {[%emt 0:02:35]} Qc7 {[%emt 0:23:41]} 11. Na3 {[%emt 0:03:29]} dxe5 {[%emt 0:14:45]} 12. Nb5 $11 {[%emt 0:01:57]} Qb6 {[%emt 0:03:29]} 13. dxe5 {[%emt 0:00:16]} a6 {[%emt 0:06:43]} 14. Nc3 {[%emt 0:02:27]} Nxc3 {[%emt 0:00:39]} 15. bxc3 {[%emt 0:00:05]} Rd8 {[%emt 0:00:35]} 16. Ng5 {[%emt 0:18:29]} g6 {[%emt 0:00:55]} 17. Qh4 {[%emt 0:05:47]} h5 {[%emt 0:01:52]} 18. Qe4 {[%emt 0:03:56]} Qc5 {[%emt 0:02:58]} 19. Bf4 {[%emt 0:17:38]} Nxe5 {[%emt 0:12:07]} 20. Bxe5 {[%emt 0:01:18]} Bxg5 {[%emt 0:01:37]} 21. Rad1 {[%emt 0:03:27]} Qc6 {[%emt 0:08:47]} 22. Rxd8+ {[%emt 0:03:12]} Bxd8 {[%emt 0:00:01]} 23. Qf4 {[%emt 0:01:21]} g5 {[%emt 0:08:22]} 24. Qd4 {[%emt 0:00:09]} Qd7 {[%emt 0:01:22]} 25. Qe4 {[%emt 0:00:57]} f6 {[%emt 0:03:12]} 26. Bd4 {[%emt 0:06:01]} Qe8 {[%emt 0:02:35]} 27. f4 {[%emt 0:00:32]} g4 {[%emt 0:01:04]} 28. f5 {[%emt 0:02:05]} Kg7 {[%emt 0:00:01]} 29. fxe6 {[%emt 0:00:40]} Qg6 {[%emt 0:01:11]} 30. Qd5 {[%emt 0:03:31]} Be7 {[%emt 0:00:50]} 31. Bd3 {[%emt 0:00:18]} Qh6 {[%emt 0:01:12]} 32. Qe4 {[%emt 0:00:24]} a5 {[%emt 0:01:25]} 33. Be3 {[%emt 0:00:44]} 1-0